bitfinex-derivatives/quotes_SOLF0:USTF0_20250823
["timestamp","ask_amount","ask_price","bid_price","bid_amount"]
[1755973272861,119.6,204.09,204.07,6.29724581]
[1755973273159,119.6,204.09,204.08,6.29724581]
[1755973275154,119.6,204.09,204.08,6.28785215]
[1755973280263,119.6,204.09,204.08,8.83785215]
[1755973280767,119.6,204.09,204.08,6.28785215]
[1755973281458,119.6,204.09,204.08,8.83785215]
[1755973281765,124.4407,204.12,204.08,8.83785215]
[1755973281965,124.4407,204.12,204.09,6.28785215]
[1755973282260,124.4407,204.12,204.1,6.28785215]
[1755973282459,124.4407,204.12,204.11,4.59867003]
[1755973285061,124.4407,204.12,204.08,2.55]
[1755973285262,124.4407,204.12,204.09,6.27091595]
[1755973285567,124.4407,204.12,204.1,6.27091595]
[1755973285762,124.4407,204.12,204.11,4.58631362]
[1755973285963,124.4407,204.12,204.11,4.58578189]
[1755973286869,119.54,204.12,204.11,4.58578189]
[1755973288772,119.54,204.12,204.08,2.55]
[1755973288974,119.54,204.12,204.09,4.58370269]
[1755973289173,119.54,204.12,204.1,4.58370269]
[1755973289374,119.54,204.12,204.08,2.55]
[1755973289673,119.54,204.12,204.09,4.58364621]
[1755973289873,119.54,204.12,204.1,4.58364621]
[1755973290073,119.54,204.12,204.08,2.55]
[1755973290373,119.54,204.12,204.09,7.13364621]
[1755973290677,119.54,204.12,204.1,4.58364621]
[1755973290976,119.54,204.12,204.11,4.58364621]
[1755973292280,122.76998184,204.12,204.11,4.58364621]
[1755973292477,119.54,204.12,204.11,4.58364621]
[1755973292777,122.76998184,204.12,204.11,4.58364621]
[1755973293372,119.54,204.12,204.11,4.58364621]
[1755973293578,122.84998184,204.12,204.11,4.58364621]
[1755973294077,3.22998184,204.12,204.11,7.16364621]
[1755973294271,3.22998184,204.12,204.11,4.58364621]
[1755973294774,3.22998184,204.12,204.04,2.58]
[1755973294967,3.22998184,204.12,203.94,9.8095]
[1755973294968,3.22998184,204.08,204.05,6.24526562]
[1755973295172,3.22998184,204.1,204.06,6.24526562]
[1755973295378,3.22998184,204.1,204.08,2.58]
[1755973295878,0.85256504,204.2,204.09,8.28340389]
[1755973296069,0.85256504,204.2,204.06,2.58]
[1755973296070,3.22998184,204.17,204.1,8.82188158]
[1755973296274,124.72451282,204.18,204.11,4.57342205]
[1755973296482,4.8999,204.15,204.12,4.57342205]
[1755973296773,4.8999,204.15,204.11,2.58]
[1755973296968,4.8999,204.15,204.12,4.57247434]
[1755973297171,4.8999,204.15,204.11,2.58]
[1755973297378,4.8999,204.15,204.12,4.5725145]
[1755973297678,4.8999,204.15,204.11,2.58]
[1755973297878,4.8999,204.15,204.12,4.5720686]
[1755973298078,4.8999,204.15,204.11,2.58]
[1755973298378,4.8999,204.15,204.12,6.2423277]
[1755973298678,4.8999,204.15,204.13,4.57363202]
[1755973298874,4.8995,204.17,204.14,4.57363202]
[1755973299069,4.8995,204.17,204.11,2.58]
[1755973299378,4.8995,204.17,204.12,8.82286405]
[1755973299579,4.8995,204.17,204.13,4.57410895]
[1755973299877,4.8995,204.17,204.14,4.57410895]
[1755973300079,124.72451282,204.18,204.07,2.58]
[1755973300278,124.72451282,204.18,204.08,6.24258258]
[1755973300480,124.72451282,204.18,204.09,6.24258258]
[1755973300676,4.9003,204.14,204.1,6.24258258]
[1755973300878,119.64,204.14,204.11,4.57388934]
[1755973301078,119.64,204.14,204.07,2.58]
[1755973301276,119.64,204.14,204.08,6.2450676]
[1755973301576,119.64,204.14,204.09,6.2450676]
[1755973301775,9.94531282,204.12,204.1,4.57553905]
[1755973301975,5.04451282,204.12,204.02,2.58]
[1755973302176,5.04451282,204.08,204.02,2.58]
[1755973308486,5.04451282,204.05,203.94,2.58]
[1755973308681,5.04451282,203.99,203.94,2.58]
[1755973309380,9.94801282,204.01,203.94,2.58]
[1755973309582,5.04451282,204.01,203.91,2.58]
[1755973309788,24.5144,204.03,203.91,2.58]
[1755973310088,5.04451282,203.96,203.91,2.58]
[1755973312487,5.04451282,203.96,203.92,2.58]
[1755973313987,5.04451282,203.96,203.93,6.04446148]
[1755973314187,5.04451282,203.96,203.94,6.04446148]
[1755973314385,5.04451282,203.96,203.95,6.04446148]
[1755973314589,5.04451282,203.96,203.92,2.58]
[1755973314887,5.04451282,203.96,203.93,6.04345429]
[1755973315087,5.04451282,203.96,203.94,6.04327723]
[1755973315289,5.04451282,203.96,203.95,6.04327723]
[1755973316488,5.04451282,203.97,203.95,6.04327723]
[1755973316688,5.04451282,203.97,203.96,6.04327723]
[1755973318690,5.04451282,203.97,203.96,4.40983661]
[1755973319090,5.04451282,203.97,203.92,2.58]
[1755973319290,5.04451282,203.97,203.93,6.03593351]
[1755973319492,5.04451282,203.97,203.94,6.03593351]
[1755973319685,5.04451282,203.97,203.95,4.40460942]
[1755973319882,5.04451282,203.97,203.92,2.58]
[1755973320083,5.04451282,203.97,203.9,4.9057]
[1755973320084,5.04451282,203.94,203.93,6.03387371]
[1755973320990,5.04451282,203.94,203.93,6.03399224]
[1755973323285,5.04451282,203.94,203.93,4.40310626]
[1755973323483,5.04451282,203.94,203.93,5.99178311]
[1755973325395,5.04451282,203.94,203.93,4.3624085]
[1755973325997,5.04451282,203.94,203.88,2.58]
[1755973325998,4.9053,203.93,203.88,2.58]
[1755973326192,4.9053,203.93,203.89,5.98978212]
[1755973326399,5.04451282,203.91,203.9,5.98978212]
[1755973326690,5.04451282,203.91,203.9,4.361461]
[1755973326892,4.9056,203.92,203.9,5.9898561]
[1755973327098,5.04451282,203.91,203.77,2.62]
[1755973327400,5.04451282,203.86,203.79,2.62]
[1755973327599,5.04451282,203.86,203.81,2.62]
[1755973327799,5.04451282,203.86,203.83,2.62]
[1755973329002,5.04451282,203.86,203.8,4.9081]
[1755973329204,5.04451282,203.86,203.82,2.62]
[1755973329504,5.04451282,203.86,203.81,4.9079]
[1755973329703,5.04451282,203.86,203.84,2.62]
[1755973332000,5.04451282,203.86,203.75,29.59171282]
[1755973332001,9.95141282,203.86,203.79,2.62]
[1755973332305,9.95141282,203.86,203.8,4.07606564]
[1755973332509,5.04451282,203.92,203.81,4.07605727]
[1755973332700,5.04451282,203.92,203.83,2.62]
[1755973332901,9.95011282,203.92,203.85,4.907]
[1755973333102,5.04451282,203.92,203.85,7.527]
[1755973333809,5.04451282,203.92,203.86,4.9067]
[1755973334607,5.04451282,203.92,203.88,2.62]
[1755973334808,5.04451282,203.92,203.89,2.62]
[1755973336113,124.84451282,203.95,203.88,2.62]
[1755973336911,119.8,203.95,203.88,2.62]
[1755973337617,5.04451282,203.96,203.88,2.62]
[1755973338715,5.04451282,203.96,203.9,7.5258]
[1755973339111,5.04451282,203.96,203.91,1.58448627]
[1755973339311,5.04451282,203.96,203.9,7.5258]
[1755973339513,5.04451282,203.96,203.91,1.58506692]
[1755973339713,5.04451282,203.96,203.9,7.5258]
[1755973340520,5.04451282,203.96,203.91,2.62]
[1755973340908,5.04451282,203.96,203.92,1.58520561]
[1755973341107,5.04451282,203.96,203.91,2.62]
[1755973341609,5.04451282,203.96,203.92,1.58576334]
[1755973341808,5.04451282,203.96,203.91,2.62]
[1755973343914,5.04451282,203.96,203.88,2.62]
[1755973344109,5.04451282,203.96,203.89,1.58806362]
[1755973344315,5.04451282,203.96,203.9,1.58806362]
[1755973344513,5.04451282,203.96,203.91,1.58806362]
[1755973344815,5.04451282,203.96,203.88,2.62]
[1755973345020,124.82451282,203.96,203.89,1.589111]
[1755973345318,4.9054,203.93,203.9,1.589111]
[1755973345520,9.94991282,203.93,203.91,1.589111]
[1755973345722,5.04451282,203.93,203.85,7.527]
[1755973345921,5.04451282,203.93,203.87,2.62]
[1755973346118,5.04451282,203.93,203.88,1.59026015]
[1755973346321,5.04451282,203.93,203.89,4.21026015]
[1755973346618,9.94981282,203.93,203.9,1.59026015]
[1755973346921,9.94981282,203.93,203.91,1.59123003]
[1755973347118,9.94981282,203.93,203.89,2.62]
[1755973347320,9.94981282,203.93,203.9,1.59228219]
[1755973347519,9.94981282,203.93,203.91,1.59228219]
[1755973347717,9.94981282,203.93,203.89,2.62]
[1755973347919,9.94981282,203.93,203.9,1.58827051]
[1755973348119,9.94981282,203.93,203.91,1.58827051]
[1755973348319,9.94981282,203.93,203.89,2.62]
[1755973348519,9.94981282,203.93,203.9,1.58907022]
[1755973348717,9.94981282,203.93,203.91,1.58907022]
[1755973349022,9.94981282,203.93,203.89,2.62]
[1755973349221,9.94981282,203.93,203.9,1.58906981]
[1755973349422,9.94981282,203.93,203.91,1.58906981]
[1755973349621,9.94981282,203.93,203.89,2.62]
[1755973349827,9.94981282,203.93,203.9,1.5899161]
[1755973350117,9.94981282,203.93,203.91,1.5899161]
[1755973350320,9.94981282,203.93,203.89,2.62]
[1755973350520,9.94981282,203.93,203.9,1.58996835]
[1755973350721,9.94981282,203.93,203.91,1.58996835]
[1755973350920,9.94981282,203.93,203.89,2.62]
[1755973350921,9.94981282,203.93,203.92,1.58996835]
[1755973354419,9.94981282,203.93,203.89,2.62]
[1755973354619,9.94981282,203.93,203.9,1.59519681]
[1755973354926,9.94981282,203.93,203.91,1.59519681]
[1755973355124,9.94981282,203.93,203.92,1.59519681]
[1755973358319,4.9048,203.95,203.92,1.59519681]
[1755973358620,4.9048,203.95,203.93,4.24519681]
[1755973358621,119.66,203.95,203.93,4.24519681]
[1755973358821,119.66,203.95,203.94,1.59519681]
[1755973359017,119.66,203.95,203.94,5.94402933]
[1755973364332,119.66,203.95,203.92,2.65]
[1755973364532,119.66,203.95,203.93,8.59802341]
[1755973364733,119.66,203.95,203.94,5.94802341]
[1755973364936,119.66,203.95,203.94,5.94799817]
[1755973365838,119.64,203.95,203.94,5.94799817]
[1755973374144,119.64,203.95,203.94,4.35146161]
[1755973374345,124.5448,203.95,203.94,5.95153968]
[1755973377446,124.5448,203.95,203.94,1.59749846]
[1755973377643,124.5448,203.95,203.94,5.95561495]
[1755973382749,127.78039994,203.95,203.94,5.95561495]
[1755973382949,127.78039994,203.95,203.94,4.35811649]
[1755973383153,127.78039994,203.95,203.94,5.96752546]
[1755973383540,127.78039994,203.95,203.94,5.96753185]
[1755973392766,127.78039994,203.95,203.94,1.60139577]
[1755973393061,127.78039994,203.95,203.94,6.0171285]
[1755973393360,127.78039994,203.95,203.94,6.01727907]
[1755973396661,4.9043,203.97,203.94,8.70727907]
[1755973396965,122.85559994,203.96,203.95,6.01727907]
[1755973398566,3.23559994,203.98,203.95,8.70727907]
[1755973398767,8.13929994,204.0,203.97,2.69]
[1755973399066,119.62,203.99,203.98,6.01727907]
[1755973399958,119.62,203.99,203.98,8.70727907]
[1755973400157,4.9031,204.02,203.99,2.69]
[1755973400158,3.23559994,204.02,203.99,2.69]
[1755973400367,119.6,204.01,204.0,8.70727907]
[1755973400569,119.6,204.01,204.0,8.70446793]
[1755973401665,119.6,204.01,204.0,7.10573273]
[1755973402261,3.23559994,204.03,204.0,8.77848456]
[1755973402467,122.83559994,204.01,203.85,34.3489]
[1755973402765,119.6,204.0,203.94,2.69]
[1755973402966,119.6,204.0,203.95,10.24295902]
[1755973403162,119.6,204.0,203.98,2.69]
[1755973403570,119.6,204.0,203.99,6.08636014]
[1755973404061,119.6,204.0,203.99,6.08652656]
[1755973404368,3.23559994,204.01,203.99,6.08652656]
[1755973404569,3.23559994,204.01,203.98,2.69]
[1755973404570,119.6,204.01,204.0,6.08652656]
[1755973404970,24.5042,204.12,204.0,8.77652656]
[1755973405166,24.5042,204.12,204.02,2.69]
[1755973405366,3.23559994,204.07,204.03,6.08652656]
[1755973405567,3.23559994,204.07,204.05,2.69]
[1755973405766,3.23559994,204.07,204.06,6.08652656]
[1755973406370,119.58,204.08,204.06,6.08652656]
[1755973406562,119.58,204.08,204.07,4.48891061]
[1755973406765,119.58,204.08,204.07,6.08172348]
[1755973407366,119.58,204.08,204.07,4.48891061]
[1755973407567,5.04822358,204.14,204.07,8.78013159]
[1755973407865,5.04822358,204.14,204.08,8.77962865]
[1755973408065,119.58,204.13,204.09,8.77962865]
[1755973408266,119.58,204.13,204.1,4.48891061]
[1755973408464,119.58,204.13,204.09,2.69]
[1755973410270,9.94862358,204.14,204.05,4.9021]
[1755973410575,119.56,204.13,204.07,2.69]
[1755973410775,119.56,204.13,204.08,4.45842395]
[1755973410977,119.56,204.13,204.09,2.69]
[1755973412776,124.4606,204.13,204.05,7.5921]
[1755973412975,119.56,204.13,204.06,4.47664133]
[1755973413280,119.56,204.13,204.05,2.69]
[1755973413474,119.56,204.13,204.06,4.47528718]
[1755973413675,119.56,204.13,204.05,2.69]
[1755973413875,119.56,204.13,204.06,4.47528051]
[1755973414074,119.56,204.13,204.05,2.69]
[1755973414268,119.56,204.13,204.06,4.47605063]
[1755973414473,119.56,204.13,204.05,2.69]
[1755973414675,4.9008,204.12,204.06,4.4744921]
[1755973414980,4.9008,204.12,204.05,2.69]
[1755973415280,4.9008,204.12,204.06,4.47467446]
[1755973415475,4.9008,204.12,204.05,2.69]
[1755973415675,4.9008,204.12,204.06,4.47281968]
[1755973415877,4.9008,204.12,204.05,2.69]
[1755973416177,119.56,204.13,204.02,2.63]
[1755973416376,5.04822358,204.11,204.03,4.47335625]
[1755973416581,5.04822358,204.11,204.02,2.63]
[1755973416778,4.9019,204.07,204.03,7.10362113]
[1755973416983,124.4219,204.07,204.04,4.47362113]
[1755973417182,124.4219,204.07,204.03,2.63]
[1755973417378,124.4219,204.07,204.04,4.47299257]
[1755973417584,124.4219,204.07,204.0,4.9033]
[1755973417783,124.4219,204.07,204.04,2.63]
[1755973417978,124.4219,204.07,204.01,2.63]
[1755973418184,124.4219,204.07,204.03,2.63]
[1755973418380,124.4219,204.07,204.04,7.1032683]
[1755973418579,124.4219,204.07,204.04,2.63]
[1755973419282,124.4219,204.07,204.0,4.9033]
[1755973419479,124.4219,204.07,204.01,8.69547003]
[1755973419679,119.52,204.07,204.03,2.63]
[1755973419979,119.52,204.07,204.04,7.10219309]
[1755973420285,119.52,204.07,204.04,2.63]
[1755973423589,119.52,204.07,204.05,4.47179045]
[1755973423787,119.52,204.07,204.04,2.63]
[1755973423988,119.52,204.07,204.05,4.47179045]
[1755973424188,119.52,204.07,204.04,2.63]
[1755973424382,119.52,204.07,204.05,4.47183195]
[1755973424582,119.52,204.07,204.04,2.63]
[1755973424786,119.52,204.07,204.05,4.47189247]
[1755973425087,119.52,204.07,204.01,7.5331]
[1755973425290,119.52,204.07,204.03,2.63]
[1755973425483,119.52,204.07,204.04,4.47300331]
[1755973425681,119.52,204.07,204.05,4.47300331]
[1755973425882,119.52,204.07,204.03,2.63]
[1755973426083,119.52,204.07,204.04,4.47299141]
[1755973426387,119.52,204.07,204.05,4.47299141]
[1755973426585,119.52,204.07,204.03,2.63]
[1755973426786,119.52,204.07,204.04,4.47205752]
[1755973426987,119.52,204.07,204.05,4.47205752]
[1755973427187,119.52,204.07,204.03,2.63]
[1755973427390,119.52,204.07,204.04,4.47254512]
[1755973427590,119.52,204.07,204.05,4.47254512]
[1755973427794,119.52,204.07,204.03,2.63]
[1755973427994,119.52,204.07,204.04,4.47300799]
[1755973428293,119.52,204.07,204.05,4.47300799]
[1755973428491,119.52,204.07,204.06,4.47300799]
[1755973429390,119.52,204.07,204.03,2.63]
[1755973429591,119.52,204.07,204.04,6.06717429]
[1755973429893,119.52,204.07,204.05,4.47362992]
[1755973430089,119.52,204.07,204.06,4.47362992]
[1755973432888,119.52,204.07,204.06,4.47685568]
[1755973435790,3.23096316,204.08,204.06,4.47685568]
[1755973435990,122.73096316,204.08,204.07,4.47685568]
[1755973437784,3.23096316,204.08,204.07,4.47685568]
[1755973437990,122.73096316,204.08,204.07,4.47685568]
[1755973438489,122.73096316,204.08,204.07,6.0753194]
[1755973438995,3.23096316,204.1,204.07,6.0753194]
[1755973439195,119.48,204.09,204.08,6.0753194]
[1755973439497,119.48,204.1,204.08,6.07507047]
[1755973439794,119.48,204.1,204.09,6.07507047]
[1755973440492,122.71096316,204.1,204.09,4.47685568]
[1755973441695,122.71096316,204.1,204.09,4.49513203]
[1755973442494,122.71096316,204.1,204.09,6.09754112]
[1755973443492,127.61206316,204.1,204.09,6.09754112]
[1755973444898,127.61206316,204.1,204.09,6.09962735]
[1755973446294,34.2938,204.19,204.09,6.09962735]
[1755973446499,119.48,204.16,204.1,6.09962735]
[1755973446798,119.48,204.16,204.11,6.11132469]
[1755973447097,24.4997,204.15,204.12,4.50682937]
[1755973447298,24.4997,204.15,204.13,2.937e-05]
[1755973447498,24.4997,204.15,204.05,2.77]
[1755973447699,3.23096316,204.1,204.06,4.37555588]
[1755973447902,119.48,204.09,204.07,1.60555588]
[1755973448101,119.48,204.09,204.08,1.60667971]
[1755973451306,119.48,204.09,204.06,2.77]
[1755973451507,119.48,204.09,204.08,2.77]
[1755973451807,119.48,204.11,204.08,4.3779042]
[1755973452007,119.48,204.11,204.09,1.6079042]
[1755973452308,119.48,204.11,204.1,1.6079042]
[1755973453097,4.9005,204.13,204.1,1.6079042]
[1755973453402,119.46,204.12,204.11,1.6079042]
[1755973455108,119.46,204.12,204.11,4.3779042]
[1755973457609,119.46,204.12,204.11,1.6079042]
[1755973458003,119.46,204.12,204.11,1.60666438]
[1755973459210,119.46,204.12,204.11,6.14564507]
[1755973461111,119.46,204.12,204.11,4.53898069]
[1755973461311,119.46,204.12,204.11,6.14763029]
[1755973461810,4.9012,204.1,204.02,10.90396316]
[1755973462012,122.67096316,204.09,204.03,10.23098264]
[1755973462212,122.67096316,204.09,204.04,13.00098264]
[1755973462412,122.67096316,204.09,204.05,10.23098264]
[1755973462611,122.67096316,204.09,204.06,10.23098264]
[1755973462909,122.67096316,204.09,204.07,6.14771196]
[1755973463116,122.67096316,204.09,204.08,6.14771196]
[1755973465014,119.44,204.09,204.08,6.14771196]
[1755973465916,3.23096316,204.11,204.08,6.14771196]
[1755973466112,119.44,204.09,204.04,8.13336316]
[1755973466312,119.44,204.09,204.06,2.77]
[1755973466513,119.44,204.09,204.07,6.14694632]
[1755973466808,119.44,204.09,204.08,6.14694632]
[1755973467013,3.23096316,204.11,204.08,6.14694632]
[1755973467211,119.44,204.1,204.09,6.14694632]
[1755973467816,119.44,204.1,204.09,6.14321436]
[1755973469413,3.23096316,204.11,204.09,6.14321436]
[1755973469616,119.44,204.1,204.06,2.77]
[1755973469915,119.44,204.1,204.07,6.14364364]
[1755973470115,119.44,204.1,204.08,6.14364364]
[1755973470314,119.44,204.1,204.09,6.14364364]
[1755973471117,4.9017,204.08,204.02,8.13386316]
[1755973471414,119.44,204.07,204.03,12.9395126]
[1755973471614,119.44,204.07,204.04,10.1695126]
[1755973471815,119.44,204.07,204.05,10.21385487]
[1755973472007,119.44,204.07,204.06,6.14572933]
[1755973473314,122.67096316,204.07,204.06,6.14572933]
[1755973477222,3.23096316,204.07,204.06,6.14572933]
[1755973477424,122.67096316,204.07,204.06,6.14572933]
[1755973480827,122.67096316,204.07,204.06,4.54162044]
[1755973481125,127.57296316,204.07,204.06,6.15129033]
[1755973481526,127.57296316,204.07,204.06,6.15111648]
[1755973484427,127.57296316,204.07,204.06,6.14972449]
[1755973488131,8.13296316,204.07,204.06,6.14972449]
[1755973488333,127.57296316,204.07,204.06,6.14972449]
[1755973488535,127.57296316,204.07,204.06,4.54713156]
[1755973490034,4.9024,204.05,204.02,2.79]
[1755973490240,119.44,204.04,204.03,6.14805979]
[1755973490837,119.44,204.04,204.03,1.60194459]
[1755973491044,119.44,204.04,204.03,6.1481118]
[1755973491942,8.13336316,204.05,204.03,6.1481118]
[1755973492144,8.13336316,204.05,204.04,6.1481118]
[1755973492342,127.57336316,204.05,204.04,6.1481118]
[1755973500752,127.57336316,204.05,204.04,4.54615794]
[1755973501052,127.57336316,204.05,204.04,6.14135366]
[1755973501454,127.57336316,204.05,204.04,6.14296824]
[1755973505262,3.23096316,204.06,204.05,2.82]
[1755973505461,122.65096316,204.06,204.05,8.96296824]
[1755973506161,3.23096316,204.06,204.05,8.96296824]
[1755973506461,122.65096316,204.06,204.05,8.96296824]
[1755973508264,122.65096316,204.06,204.05,6.14296824]
[1755973509561,122.65096316,204.06,204.05,1.59747469]
[1755973509766,122.65096316,204.06,204.05,6.1177195]
[1755973510462,122.65096316,204.06,204.05,6.1185356]
[1755973512665,122.63096316,204.06,204.05,6.1185356]
[1755973516171,122.63096316,204.06,204.05,6.12231754]
[1755973519372,122.63096316,204.06,204.01,2.82]
[1755973519573,119.38,204.05,204.03,2.82]
[1755973519771,119.38,204.05,204.04,6.13527394]
[1755973522982,8.13316316,204.06,204.04,8.95527394]
[1755973523277,8.13316316,204.06,203.99,4.9036]
[1755973523278,119.38,204.05,203.99,4.9036]
[1755973523479,3.23096316,204.04,204.02,2.82]
[1755973523680,119.38,204.03,204.02,2.82]
[1755973523880,119.38,204.03,204.02,13.04932718]
[1755973524976,3.23096316,204.11,204.04,2.82]
[1755973525273,119.38,204.1,204.07,2.82]
[1755973525478,3.23096316,204.09,204.08,6.13407769]
[1755973529471,3.23096316,204.09,204.08,6.34631917]
[1755973530078,3.23096316,204.09,204.08,6.3463636]
[1755973532586,3.23096316,204.09,204.08,4.7464327]
[1755973533179,3.23096316,204.09,204.08,6.34675629]
[1755973539284,3.23096316,204.09,204.08,6.36672158]
[1755973540286,122.57096316,204.09,204.08,9.07672158]
[1755973540489,3.23096316,204.09,204.08,9.07672158]
[1755973540688,122.57096316,204.09,204.08,9.07672158]
[1755973542489,122.57096316,204.09,204.08,9.07623862]
[1755973543688,122.57096316,204.09,204.08,6.36623862]
[1755973545691,122.57096316,204.09,204.08,6.36657202]
[1755973547085,122.57096316,204.09,204.08,7.202e-05]
[1755973547290,122.57096316,204.09,204.03,2.71]
[1755973547485,3.23096316,204.04,204.03,2.71]
[1755973547792,122.55096316,204.04,204.03,2.71]
[1755973551299,119.32,204.04,204.03,2.71]
[1755973554698,119.32,204.04,203.99,4.9036]
[1755973554897,119.32,204.04,204.0,4.09630827]
[1755973555097,119.32,204.04,204.01,4.09630827]
[1755973555299,119.32,204.04,204.0,2.71]
[1755973555495,119.32,204.04,204.01,4.09629964]
[1755973555797,119.32,204.04,204.03,2.71]
[1755973555997,119.32,204.04,204.03,6.80629964]
[1755973556693,3.23096316,204.05,204.03,6.80629964]
[1755973556893,119.32,204.04,204.03,2.71]
[1755973557093,119.32,204.04,204.03,6.81714217]
[1755973558499,119.32,204.04,204.03,4.10714217]
[1755973559102,119.32,204.04,204.03,5.66740365]
[1755973559297,119.32,204.04,204.03,10.33994625]
[1755973561506,3.23096316,204.05,204.03,10.33994625]
[1755973561804,3.23096316,204.05,204.04,10.33994625]
[1755973562205,122.53096316,204.05,204.04,10.33994625]
[1755973567603,122.53096316,204.05,204.04,4.10714217]
[1755973567909,122.53096316,204.05,204.04,10.34409617]
[1755973569507,3.23096316,204.05,204.04,10.34409617]
[1755973569711,122.53096316,204.05,204.04,10.34409617]
[1755973573708,8.13196316,204.11,204.05,2.57]
[1755973573904,119.28,204.1,204.06,10.4052202]
[1755973574104,119.28,204.1,204.08,2.57]
[1755973574317,119.28,204.1,204.09,6.236954]
[1755973574917,3.23096316,204.13,204.09,8.806954]
[1755973575119,3.23096316,204.16,204.1,12.97357816]
[1755973575419,119.28,204.15,204.11,12.97357816]
[1755973575716,119.28,204.15,204.12,6.236954]
[1755973575915,119.28,204.15,204.13,6.236954]
[1755973576113,119.28,204.15,204.14,6.236954]
[1755973576618,124.18,204.15,204.14,6.236954]
[1755973577420,4.9007,204.12,204.07,3.23096316]
[1755973577714,122.51096316,204.11,204.08,6.2259792]
[1755973578014,119.26,204.11,204.1,2.57]
[1755973578211,119.26,204.11,204.1,6.2259792]
[1755973578417,122.49096316,204.11,204.1,6.2259792]
[1755973580817,122.49096316,204.11,204.1,6.22553775]
[1755973581322,119.26,204.11,204.1,6.22553775]
[1755973581515,122.49096316,204.11,204.1,6.22553775]
[1755973583326,4.9013,204.1,204.05,2.57]
[1755973583525,122.49096316,204.09,204.06,12.90117092]
[1755973583726,122.49096316,204.09,204.07,6.22462884]
[1755973584026,122.49096316,204.09,204.08,6.22462884]
[1755973584931,122.49096316,204.09,204.03,2.57]
[1755973585126,3.23096316,204.05,204.04,1.55828947]
[1755973585327,122.49096316,204.05,204.04,1.55828947]
[1755973587527,122.49096316,204.05,204.04,1.55848514]
[1755973588629,119.26,204.05,204.04,1.55848514]
[1755973589625,119.26,204.05,204.04,4.12848514]
[1755973592029,119.26,204.05,204.04,1.55848514]
[1755973596627,119.24,204.06,204.04,1.55848514]
[1755973596832,119.24,204.06,204.05,1.55848514]
[1755973597041,119.24,204.06,204.05,6.11974632]
[1755973597233,119.24,204.06,204.01,2.57]
[1755973597434,119.24,204.06,204.02,12.82909388]
[1755973597633,119.24,204.06,204.03,10.22909388]
[1755973597834,119.24,204.06,204.04,6.11896239]
[1755973598036,119.24,204.06,204.05,6.11896239]
[1755973600338,3.23096316,204.13,204.06,2.6]
[1755973600539,3.23096316,204.13,204.07,10.22829356]
[1755973600839,3.23096316,204.11,204.08,6.11896239]
[1755973601032,119.24,204.1,204.09,6.11896239]
[1755973601739,119.24,204.1,204.09,12.89836139]
[1755973602229,3.23096316,204.13,204.1,2.6]
[1755973602432,119.24,204.12,204.11,6.11896239]
[1755973602834,119.24,204.12,204.11,8.71896239]
[1755973604131,3.23096316,204.15,204.11,8.71896239]
[1755973604338,119.24,204.16,204.12,6.11896239]
[1755973604538,119.24,204.16,204.13,6.11896239]
[1755973604739,119.24,204.16,204.14,6.11896239]
[1755973604938,119.24,204.16,204.15,4.56126118]
[1755973605339,119.24,204.16,204.15,6.11637289]
[1755973605540,119.24,204.16,204.15,4.56126118]
[1755973606642,24.4871,204.26,204.15,6.11599864]
[1755973606643,5.04510013,204.22,204.15,6.11599864]
[1755973606841,119.22,204.19,204.16,6.11599864]
[1755973607037,119.22,204.18,204.17,1.55428845]
[1755973607242,119.22,204.18,204.17,6.1063439]
[1755973607640,119.22,204.18,204.17,4.55205545]
[1755973608244,119.22,204.18,204.13,2.6]
[1755973608545,119.22,204.18,204.14,4.55035752]
[1755973608844,119.22,204.18,204.15,4.55035752]
[1755973609041,119.22,204.17,204.16,4.55035752]
[1755973609242,119.22,204.18,204.16,7.15035752]
[1755973609438,119.22,204.18,204.16,2.6]
[1755973609643,119.22,204.18,204.17,4.54824493]
[1755973612345,119.2,204.22,204.17,7.14484707]